[Event "1st SOA-GM Festival 2024"]
[Site "Bhubaneswar"]
[Date "2024.02.01"]
[Round "7.19"]
[White "Dhananjay S"]
[Black "Roneet Das"]
[Result "1/2-1/2"]
[ECO "A30"]
[WhiteElo "2151"]
[BlackElo "2018"]
[Annotator "ChessBase"]
[PlyCount "138"]
[EventDate "2024.02.01"]
[EventType "swiss"]
[EventCountry "IND"]
[SourceTitle "playchess.com"]
[Source "ChessBase"]
[SourceQuality "1"]
[TimeControl "5400+30"]

1. Nf3 {[%emt 0:00:03]} c5 {[%emt 0:01:01]} 2. c4 {[%emt 0:00:04]} Nf6 {[%emt 0:00:12]} 3. g3 {[%emt 0:00:09]} b6 {[%emt 0:00:13]} 4. Bg2 {[%emt 0:00:05]} Bb7 {[%emt 0:00:04]} 5. O-O {[%emt 0:00:05]} e6 {[%emt 0:00:29]} 6. Nc3 {[%emt 0:00:07]} Be7 {[%emt 0:00:51]} 7. d4 {[%emt 0:00:30]} cxd4 {[%emt 0:00:06]} 8. Qxd4 {[%emt 0:00:04]} d6 {[%emt 0:01:38]} 9. Rd1 {[%emt 0:00:48]} a6 {[%emt 0:00:24]} 10. b3 {[%emt 0:00:55]} Nbd7 {[%emt 0:00:43]} 11. Bb2 {[%emt 0:00:34]} O-O {[%emt 0:01:05]} 12. Rac1 {[%emt 0:00:03]} Rc8 {[%emt 0:02:41]} 13. h3 {[%emt 0:01:28]} Qc7 {[%emt 0:02:01]} 14. e4 {[%emt 0:00:54]} Qb8 {[%emt 0:03:07]} 15. Qe3 {[%emt 0:06:58]} Rfe8 {[%emt 0:03:28]} 16. Nd4 {[%emt 0:01:49]} Bf8 {[%emt 0:03:02]} 17. Re1 {[%emt 0:06:27]} Red8 {[%emt 0:00:20]} 18. g4 {[%emt 0:01:38]} g6 {[%emt 0:12:12]} 19. Kh1 {[%emt 0:03:03]} Ba8 {[%emt 0:00:33]} 20. f4 {[%emt 0:04:28]} Nc5 {[%emt 0:08:21]} 21. Nde2 {[%emt 0:12:26]} Bg7 {[%emt 0:01:40]} 22. Ng3 {[%emt 0:13:40]} d5 {[%emt 0:02:58]} 23. exd5 {[%emt 0:04:54]} exd5 {[%emt 0:00:44]} 24. cxd5 {[%emt 0:02:13]} Nxd5 {[%emt 0:02:10]} 25. Nxd5 {[%emt 0:00:57]} Bxb2 {[%emt 0:09:41]} 26. Rcd1 {[%emt 0:02:33]} Bxd5 {[%emt 0:04:37]} 27. Bxd5 {[%emt 0:01:21]} Re8 {[%emt 0:00:35]} 28. Qf3 {[%emt 0:03:41]} Rxe1+ {[%emt 0:01:52]} 29. Rxe1 {[%emt 0:00:17]} Re8 {[%emt 0:00:06]} 30. Rd1 {[%emt 0:02:22]} a5 {[%emt 0:02:46]} 31. g5 {[%emt 0:03:33]} Ne6 {[%emt 0:02:29]} 32. Rf1 {[%emt 0:00:47]} Qd6 {[%emt 0:02:26]} 33. Ne4 {[%emt 0:01:21]} Qe7 {[%emt 0:04:36]} 34. f5 {[%emt 0:01:27]} Nd8 {[%emt 0:07:02]} 35. fxg6 {[%emt 0:00:49]} hxg6 {[%emt 0:00:01]} 36. Qf2 {[%emt 0:00:47]} Qd7 {[%emt 0:00:36]} 37. Qg2 {[%emt 0:00:24]} Ne6 {[%emt 0:00:00]} 38. Qf3 {[%emt 0:00:00]} Nd8 {[%emt 0:01:00]} 39. Qg2 {[%emt 0:00:00]} Ne6 {[%emt 0:00:00]} 40. Qf3 {[%emt 0:01:00]} Nd8 {[%emt 0:01:00]} 41. Qg2 {[%emt 0:01:00]} Ne6 {[%emt 0:00:00]} 42. Qf3 {[%emt 0:00:00]} Nd8 {[%emt 0:01:00]} 43. Qg2 {[%emt 0:01:00]} Bg7 {[%emt 0:04:13]} 44. Rd1 {[%emt 0:06:48]} Ne6 {[%emt 0:01:28]} 45. Rf1 {[%emt 0:08:51]} Nd8 {[%emt 0:00:58]} 46. Qf3 {[%emt 0:03:05]} Re5 {[%emt 0:01:41]} 47. Rd1 {[%emt 0:01:46]} Qe7 {[%emt 0:01:15]} 48. h4 {[%emt 0:03:27]} Ne6 {[%emt 0:00:00]} 49. Rf1 {[%emt 0:00:00]} Nd8 {[%emt 0:00:00]} 50. Rd1 {[%emt 0:00:00]} Rf5 {[%emt 0:01:44]} 51. Qg4 {[%emt 0:03:01]} Qe5 {[%emt 0:05:54]} 52. Ng3 {[%emt 0:00:35]} Rf4 {[%emt 0:01:21]} 53. Qc8 {[%emt 0:00:06]} Rxh4+ {[%emt 0:00:38]} 54. Kg2 {[%emt 0:00:01]} Qb2+ {[%emt 0:00:20]} 55. Kf3 {[%emt 0:00:51]} Qc3+ {[%emt 0:01:44]} 56. Qxc3 {[%emt 0:00:14]} Bxc3 {[%emt 0:00:01]} 57. Ne4 {[%emt 0:01:29]} Be5 {[%emt 0:00:29]} 58. Bc4 {[%emt 0:00:50]} Ne6 {[%emt 0:00:45]} 59. Bxe6 {[%emt 0:00:11]} fxe6 {[%emt 0:00:01]} 60. Rd8+ {[%emt 0:00:34]} Kf7 {[%emt 0:00:05]} 61. Rd7+ {[%emt 0:00:03]} Ke8 {[%emt 0:00:35]} 62. Rb7 {[%emt 0:00:06]} Bd4 {[%emt 0:00:29]} 63. Nd6+ {[%emt 0:01:21]} Kd8 {[%emt 0:00:44]} 64. Nf7+ {[%emt 0:00:56]} Ke8 {[%emt 0:00:08]} 65. Nd6+ {[%emt 0:00:03]} Kd8 {[%emt 0:00:05]} 66. Kg3 {[%emt 0:00:02]} Rh1 {[%emt 0:00:30]} 67. Nf7+ {[%emt 0:01:58]} Ke8 {[%emt 0:00:01]} 68. Nd6+ {[%emt 0:00:01]} Kd8 {[%emt 0:00:00]} 69. Nc4 {[%emt 0:01:57]} Kc8 {[%emt 0:10:01]} 1/2-1/2

[Event "1st SOA-GM Festival 2024"]
[Site "Bhubaneswar"]
[Date "2024.02.01"]
[Round "7.20"]
[White "Sidhant, Mohapatra"]
[Black "Singgih, Diajeng Theresa"]
[Result "0-1"]
[ECO "C78"]
[WhiteElo "2421"]
[BlackElo "1867"]
[Annotator "ChessBase"]
[PlyCount "94"]
[EventDate "2024.02.01"]
[EventType "swiss"]
[EventCountry "IND"]
[SourceTitle "playchess.com"]
[Source "ChessBase"]
[SourceQuality "1"]
[TimeControl "5400+30"]

1. e4 {[%emt 0:00:09]} e5 {[%emt 0:00:06]} 2. Nf3 {[%emt 0:00:05]} Nc6 {[%emt 0:00:09]} 3. Bb5 {[%emt 0:00:24]} a6 {[%emt 0:00:05]} 4. Ba4 {[%emt 0:00:05]} Nf6 {[%emt 0:00:07]} 5. O-O {[%emt 0:00:05]} b5 {[%emt 0:00:04]} 6. Bb3 {[%emt 0:00:06]} Bc5 {[%emt 0:01:17]} 7. a4 {[%emt 0:00:10]} Bb7 {[%emt 0:00:40]} 8. d3 {[%emt 0:01:59]} O-O {[%emt 0:02:08]} 9. Nc3 {[%emt 0:00:06]} b4 {[%emt 0:02:31]} 10. Nd5 {[%emt 0:00:10]} h6 {[%emt 0:02:45]} 11. a5 {[%emt 0:03:11]} Nd4 {[%emt 0:04:11]} 12. Nxd4 {[%emt 0:01:55]} exd4 {[%emt 0:05:44]} 13. Nxf6+ {[%emt 0:01:12]} Qxf6 {[%emt 0:00:07]} 14. Qh5 {[%emt 0:00:03]} Be7 {[%emt 0:03:40]} 15. Bd2 {[%emt 0:00:17]} Rab8 {[%emt 0:02:37]} 16. f4 {[%emt 0:01:34]} Bc6 {[%emt 0:00:17]} 17. g4 {[%emt 0:05:05]} Qh4 {[%emt 0:02:52]} 18. Qxh4 {[%emt 0:00:44]} Bxh4 {[%emt 0:00:02]} 19. g5 {[%emt 0:00:08]} Kh7 {[%emt 0:03:52]} 20. Kg2 {[%emt 0:00:46]} hxg5 {[%emt 0:09:19]} 21. fxg5 {[%emt 0:00:15]} Rb5 {[%emt 0:03:33]} 22. Bc4 {[%emt 0:01:35]} Re5 {[%emt 0:00:18]} 23. Bf4 {[%emt 0:00:07]} Rc5 {[%emt 0:00:19]} 24. Bd2 {[%emt 0:01:50]} d6 {[%emt 0:07:09]} 25. Kh3 {[%emt 0:05:20]} Bxg5 {[%emt 0:01:16]} 26. Bxb4 {[%emt 0:00:05]} Rxc4 {[%emt 0:02:55]} 27. dxc4 {[%emt 0:00:11]} Bxe4 {[%emt 0:00:04]} 28. c5 {[%emt 0:03:21]} f5 {[%emt 0:06:50]} 29. cxd6 {[%emt 0:00:58]} Kg6 {[%emt 0:02:01]} 30. Kg3 {[%emt 0:01:36]} f4+ {[%emt 0:03:14]} 31. Kf2 {[%emt 0:00:04]} Bh4+ {[%emt 0:02:09]} 32. Ke2 {[%emt 0:00:15]} f3+ {[%emt 0:00:26]} 33. Kd1 {[%emt 0:00:07]} cxd6 {[%emt 0:03:28]} 34. Bxd6 {[%emt 0:00:07]} Rc8 {[%emt 0:02:22]} 35. Rc1 {[%emt 0:01:02]} Kh5 {[%emt 0:02:43]} 36. Bf4 {[%emt 0:00:39]} Rd8 {[%emt 0:01:24]} 37. Bd2 {[%emt 0:03:08]} f2 {[%emt 0:03:39]} 38. Bf4 {[%emt 0:02:49]} Kg4 {[%emt 0:02:36]} 39. Bg3 {[%emt 0:00:30]} Bxg3 {[%emt 0:00:54]} 40. hxg3 {[%emt 0:00:01]} Kxg3 {[%emt 0:00:10]} 41. Ke2 {[%emt 0:00:12]} Bf3+ {[%emt 0:01:33]} 42. Kd3 {[%emt 0:00:05]} Bg2 {[%emt 0:00:22]} 43. Rfd1 {[%emt 0:00:06]} Rf8 {[%emt 0:00:18]} 44. b4 {[%emt 0:00:22]} f1=Q+ {[%emt 0:00:52]} 45. Rxf1 {[%emt 0:00:03]} Rxf1 {[%emt 0:00:06]} 46. Rxf1 {[%emt 0:00:03]} Bxf1+ {[%emt 0:00:04]} 47. Kxd4 {[%emt 0:00:04]} Kf4 {[%emt 0:00:14]} 0-1

[Event "1st SOA-GM Festival 2024"]
[Site "Bhubaneswar"]
[Date "2024.02.02"]
[Round "8.1"]
[White "Das, Sayantan"]
[Black "Vignesh Advaith Vemula"]
[Result "1-0"]
[ECO "B52"]
[WhiteElo "2514"]
[BlackElo "2028"]
[Annotator "RC"]
[PlyCount "67"]
[EventDate "2024.02.01"]
[EventType "swiss"]
[EventCountry "IND"]
[SourceTitle "playchess.com"]
[Source "ChessBase"]
[SourceQuality "1"]
[TimeControl "5400+30"]

1. e4 {[%emt 0:00:17]} c5 {[%emt 0:00:05]} 2. Nf3 {[%emt 0:00:10]} d6 {[%emt 0:00:05]} 3. Bb5+ {[%emt 0:00:15]} Bd7 {[%emt 0:00:06]} 4. c4 {[%emt 0:00:26]} Nf6 {[%emt 0:04:35]} 5. Nc3 {[%emt 0:00:07]} g6 {[%emt 0:00:29]} 6. O-O {[%emt 0:00:47]} Bg7 {[%emt 0:00:54]} 7. d4 {[%emt 0:04:45]} cxd4 {[%emt 0:01:00]} 8. Bxd7+ {[%emt 0:03:21]} Nbxd7 {[%emt 0:01:52]} 9. Nxd4 {[%emt 0:01:45]} O-O {[%emt 0:00:09]} 10. Be3 {[%emt 0:08:47]} Nc5 {[%emt 0:07:31]} 11. f3 {[%emt 0:00:20]} Rc8 {[%emt 0:02:37]} 12. Rc1 {[%emt 0:00:41]} b6 {[%emt 0:04:59]} 13. b3 {[%emt 0:07:21]} Qd7 {[%emt 0:06:11]} 14. Qd2 {[%emt 0:02:30]} Rfd8 {[%emt 0:01:36]} 15. Bh6 {[%emt 0:06:27]} Ne8 {[%emt 0:11:27]} 16. Rcd1 {[%emt 0:05:01]} Ne6 {[%emt 0:06:46]} 17. Bxg7 {[%emt 0:01:51]} N8xg7 {[%emt 0:00:17]} 18. Nc2 {[%emt 0:04:46]} Nc7 {[%emt 0:07:08]} 19. a4 {[%emt 0:06:10]} e6 {[%emt 0:04:46]} 20. Ne3 {[%emt 0:04:49]} Qe7 {[%emt 0:01:54]} 21. Rfe1 {[%emt 0:01:02]} Nh5 {[%emt 0:06:35]} 22. Ng4 {[%emt 0:09:16]} Nf6 {[%emt 0:00:32]} 23. Qg5 {[%emt 0:02:35]} Nfd5 {[%emt 0:01:10]} 24. Qxe7 {[%emt 0:00:48]} Nxe7 {[%emt 0:00:05]} 25. Nb5 {[%emt 0:03:25]} Nxb5 {[%emt 0:00:50]} 26. axb5 {[%emt 0:00:04]} Kf8 {[%emt 0:01:42]} 27. Rd2 {[%emt 0:01:46]} h5 {[%emt 0:04:40]} 28. Ne3 {[%emt 0:00:34]} Rd7 {[%emt 0:00:41]} 29. Red1 {[%emt 0:00:44]} Rcd8 {[%emt 0:00:06]} 30. Kf2 {[%emt 0:00:19]} f5 {[%emt 0:03:36]} 31. Nc2 {[%emt 0:01:50]} Nc8 {[%emt 0:05:18]} 32. Nd4 {[%emt 0:02:49]} Re8 {[%emt 0:00:11]} 33. e5 {[%emt 0:04:02]} Kf7 {[%emt 0:01:50]} 34. Nc6 {[%emt 0:00:34]} 1-0

[Event "1st SOA-GM Festival 2024"]
[Site "Bhubaneswar"]
[Date "2024.02.02"]
[Round "8.2"]
[White "Panda Sambit"]
[Black "Soham Kamotra"]
[Result "1/2-1/2"]
[ECO "D15"]
[WhiteElo "2404"]
[BlackElo "2348"]
[Annotator "RC"]
[PlyCount "70"]
[EventDate "2024.02.01"]
[EventType "swiss"]
[EventCountry "IND"]
[SourceTitle "playchess.com"]
[Source "ChessBase"]
[SourceQuality "1"]
[TimeControl "5400+30"]

1. d4 {[%emt 0:01:15]} d5 {[%emt 0:00:29]} 2. c4 {[%emt 0:00:15]} c6 {[%emt 0:00:07]} 3. Nf3 {[%emt 0:01:45]} Nf6 {[%emt 0:00:09]} 4. Nc3 {[%emt 0:01:37]} a6 {[%emt 0:00:35]} 5. c5 {[%emt 0:04:12]} Bf5 {[%emt 0:00:08]} 6. Qb3 {[%emt 0:02:15]} Ra7 {[%emt 0:00:07]} 7. Bf4 {[%emt 0:15:36]} h6 {[%emt 0:00:26]} 8. e3 {[%emt 0:03:35]} Nbd7 {[%emt 0:00:18]} 9. h3 {[%emt 0:01:14]} e6 {[%emt 0:00:11]} 10. Be2 {[%emt 0:01:26]} Be7 {[%emt 0:00:08]} 11. Qd1 {[%emt 0:03:06]} O-O {[%emt 0:00:28]} 12. O-O {[%emt 0:00:39]} Re8 {[%emt 0:00:26]} 13. b4 {[%emt 0:00:31]} Ne4 {[%emt 0:00:18]} 14. Nxe4 {[%emt 0:07:57]} Bxe4 {[%emt 0:00:03]} 15. Bd3 {[%emt 0:03:32]} Bxf3 {[%emt 0:00:30]} 16. Qxf3 {[%emt 0:00:11]} Bf6 {[%emt 0:00:28]} 17. Qg4 {[%emt 0:03:47]} Kh8 {[%emt 0:05:26]} 18. Qh5 {[%emt 0:00:22]} Kg8 {[%emt 0:00:08]} 19. Qg4 {[%emt 0:03:15]} Kh8 {[%emt 0:00:35]} 20. Rad1 {[%emt 0:17:59]} e5 {[%emt 0:20:52]} 21. dxe5 {[%emt 0:02:37]} Nxe5 {[%emt 0:00:07]} 22. Bxe5 {[%emt 0:00:04]} Rxe5 {[%emt 0:00:08]} 23. e4 {[%emt 0:00:04]} h5 {[%emt 0:10:34]} 24. Qe2 {[%emt 0:12:05]} dxe4 {[%emt 0:01:24]} 25. Bxe4 {[%emt 0:00:12]} Qe7 {[%emt 0:05:39]} 26. Rfe1 {[%emt 0:13:01]} g6 {[%emt 0:00:27]} 27. f4 {[%emt 0:00:38]} Re6 {[%emt 0:00:06]} 28. f5 {[%emt 0:00:37]} Re5 {[%emt 0:00:08]} 29. fxg6 {[%emt 0:00:23]} fxg6 {[%emt 0:02:42]} 30. Qf3 {[%emt 0:00:47]} Ra8 {[%emt 0:09:08]} 31. Rf1 {[%emt 0:00:04]} Rxe4 {[%emt 0:06:28]} 32. Qxf6+ {[%emt 0:00:47]} Kh7 {[%emt 0:00:41]} 33. Rd6 {[%emt 0:00:34]} Rg8 {[%emt 0:00:22]} 34. Qxe7+ {[%emt 0:00:23]} Rxe7 {[%emt 0:00:02]} 35. Rff6 {[%emt 0:00:35]} Rgg7 {[%emt 0:00:28]} 1/2-1/2

[Event "1st SOA-GM Festival 2024"]
[Site "Bhubaneswar"]
[Date "2024.02.02"]
[Round "8.3"]
[White "Ghosh, Diptayan"]
[Black "Tahbaz, Arash"]
[Result "1-0"]
[ECO "E65"]
[WhiteElo "2568"]
[BlackElo "2425"]
[Annotator "RC"]
[PlyCount "61"]
[EventDate "2024.02.01"]
[EventType "swiss"]
[EventCountry "IND"]
[SourceTitle "playchess.com"]
[Source "ChessBase"]
[SourceQuality "1"]
[TimeControl "5400+30"]

1. Nf3 {[%emt 0:00:47]} Nf6 {[%emt 0:00:11]} 2. g3 {[%emt 0:00:06]} g6 {[%emt 0:00:05]} 3. Bg2 {[%emt 0:00:04]} Bg7 {[%emt 0:00:04]} 4. c4 {[%emt 0:00:07]} O-O {[%emt 0:00:07]} 5. d4 {[%emt 0:00:05]} d6 {[%emt 0:00:07]} 6. O-O {[%emt 0:00:05]} c5 {[%emt 0:00:10]} 7. Nc3 {[%emt 0:00:32]} Nc6 {[%emt 0:00:04]} 8. dxc5 {[%emt 0:00:15]} dxc5 {[%emt 0:00:05]} 9. Be3 {[%emt 0:00:03]} Qa5 {[%emt 0:00:08]} 10. Qb3 {[%emt 0:00:08]} Qb4 {[%emt 0:01:54]} 11. Qxb4 {[%emt 0:04:36]} cxb4 {[%emt 0:00:09]} 12. Nd5 {[%emt 0:00:03]} Nxd5 {[%emt 0:06:40]} 13. cxd5 {[%emt 0:00:06]} Ne5 {[%emt 0:00:06]} 14. Nxe5 {[%emt 0:00:07]} Bxe5 {[%emt 0:00:05]} 15. Bc5 {[%emt 0:00:04]} Bxb2 {[%emt 0:11:34]} 16. Rab1 {[%emt 0:00:05]} Bf6 {[%emt 0:01:44]} 17. Bxb4 {[%emt 0:00:05]} Bd7 {[%emt 0:08:14]} 18. d6 {[%emt 0:20:01]} Bc6 {[%emt 0:02:03]} 19. Bxc6 {[%emt 0:12:16]} bxc6 {[%emt 0:00:03]} 20. d7 {[%emt 0:00:07]} Rfd8 {[%emt 0:01:59]} 21. Rfd1 {[%emt 0:02:39]} Rab8 {[%emt 0:00:54]} 22. Rb3 {[%emt 0:00:09]} Rb5 {[%emt 0:00:54]} 23. Be1 {[%emt 0:02:11]} Rd5 {[%emt 0:09:55]} 24. Rxd5 {[%emt 0:00:05]} cxd5 {[%emt 0:00:02]} 25. Rb7 {[%emt 0:00:05]} Bd4 {[%emt 0:00:03]} 26. Bb4 {[%emt 0:04:11]} Kf8 {[%emt 0:00:04]} 27. e3 {[%emt 0:00:08]} Bb6 {[%emt 0:00:03]} 28. a4 {[%emt 0:00:03]} Ra8 {[%emt 0:00:03]} 29. a5 {[%emt 0:05:16]} Bd8 {[%emt 0:00:05]} 30. a6 {[%emt 0:00:04]} Bb6 {[%emt 0:02:34]} 31. Bc3 {[%emt 0:00:26]} 1-0

[Event "1st SOA-GM Festival 2024"]
[Site "Bhubaneswar"]
[Date "2024.02.02"]
[Round "8.4"]
[White "Fawzy, Adham"]
[Black "Ayush Sharma"]
[Result "1/2-1/2"]
[ECO "C18"]
[WhiteElo "2522"]
[BlackElo "2378"]
[Annotator "RC"]
[PlyCount "121"]
[EventDate "2024.02.01"]
[EventType "swiss"]
[EventCountry "IND"]
[SourceTitle "playchess.com"]
[Source "ChessBase"]
[SourceQuality "1"]
[TimeControl "5400+30"]

1. e4 {[%emt 0:00:41]} e6 {[%emt 0:00:08]} 2. d4 {[%emt 0:00:58]} d5 {[%emt 0:00:04]} 3. Nc3 {[%emt 0:00:18]} Bb4 {[%emt 0:00:20]} 4. e5 {[%emt 0:01:39]} Ne7 {[%emt 0:00:17]} 5. a3 {[%emt 0:01:19]} Bxc3+ {[%emt 0:00:08]} 6. bxc3 {[%emt 0:00:07]} c5 {[%emt 0:00:04]} 7. h4 {[%emt 0:00:53]} Qc7 {[%emt 0:00:15]} 8. h5 {[%emt 0:00:06]} h6 {[%emt 0:00:24]} 9. Rh3 {[%emt 0:02:39]} Nbc6 {[%emt 0:00:06]} 10. Qg4 {[%emt 0:00:44]} Rg8 {[%emt 0:01:40]} 11. Qf4 {[%emt 0:10:42]} Bd7 {[%emt 0:03:10]} 12. Nf3 {[%emt 0:16:27]} cxd4 {[%emt 0:09:12]} 13. cxd4 {[%emt 0:05:38]} Nb4 {[%emt 0:04:47]} 14. axb4 {[%emt 0:00:53]} Qc3+ {[%emt 0:00:02]} 15. Nd2 {[%emt 0:00:46]} Qxa1 {[%emt 0:00:02]} 16. Nb3 {[%emt 0:02:05]} Qa4 {[%emt 0:05:35]} 17. Nc5 {[%emt 0:06:11]} Qxb4+ {[%emt 0:00:36]} 18. Kd1 {[%emt 0:04:20]} Nf5 {[%emt 1:12:40]} 19. Rb3 {[%emt 0:03:30]} Qxd4+ {[%emt 0:00:00]} 20. Qxd4 {[%emt 0:01:42]} Nxd4 {[%emt 0:00:00]} 21. Rxb7 {[%emt 0:00:10]} Bc8 {[%emt 0:00:00]} 22. Rc7 {[%emt 0:03:16]} a6 {[%emt 0:00:00]} 23. Ba3 {[%emt 0:05:50]} Nb5 {[%emt 0:00:00]} 24. Bxb5+ {[%emt 0:00:25]} axb5 {[%emt 0:00:00]} 25. Nd3 {[%emt 0:01:00]} f6 {[%emt 0:00:00]} 26. Bd6 {[%emt 0:04:16]} Bd7 {[%emt 0:00:00]} 27. g4 {[%emt 0:01:46]} Rc8 {[%emt 0:00:00]} 28. Ra7 {[%emt 0:00:32]} Rc6 {[%emt 0:00:00]} 29. f4 {[%emt 0:00:59]} fxe5 {[%emt 0:00:00]} 30. Bxe5 {[%emt 0:10:32]} Ke7 {[%emt 0:00:00]} 31. g5 {[%emt 0:01:55]} hxg5 {[%emt 0:00:00]} 32. fxg5 {[%emt 0:00:01]} Rc4 {[%emt 0:00:00]} 33. c3 {[%emt 0:03:40]} Ra4 {[%emt 0:00:00]} 34. Rb7 {[%emt 0:00:21]} Rg4 {[%emt 0:00:00]} 35. Nc5 {[%emt 0:02:22]} Rd8 {[%emt 0:00:00]} 36. h6 {[%emt 0:02:23]} Rxg5 {[%emt 0:00:00]} 37. hxg7 {[%emt 0:00:53]} Rg6 {[%emt 0:00:54]} 38. Kd2 {[%emt 0:01:36]} Rg2+ {[%emt 0:03:38]} 39. Ke3 {[%emt 0:00:58]} Rg5 {[%emt 0:00:28]} 40. Kd4 {[%emt 0:01:12]} Rg4+ {[%emt 0:00:23]} 41. Kd3 {[%emt 0:00:20]} Rg6 {[%emt 0:00:20]} 42. Ra7 {[%emt 0:00:39]} Rg4 {[%emt 0:02:41]} 43. Kd2 {[%emt 0:02:37]} Rg6 {[%emt 0:00:31]} 44. Ke3 {[%emt 0:00:17]} Rg4 {[%emt 0:00:32]} 45. Kf3 {[%emt 0:01:11]} Rg6 {[%emt 0:00:22]} 46. Kf2 {[%emt 0:01:16]} Ke8 {[%emt 0:00:29]} 47. Nb7 {[%emt 0:01:09]} Ke7 {[%emt 0:01:20]} 48. Nxd8 {[%emt 0:00:30]} Kxd8 {[%emt 0:00:02]} 49. Ke3 {[%emt 0:00:40]} Ke7 {[%emt 0:00:18]} 50. Kd4 {[%emt 0:00:25]} Rg4+ {[%emt 0:00:54]} 51. Ke3 {[%emt 0:00:01]} Rg6 {[%emt 0:00:26]} 52. Rc7 {[%emt 0:00:57]} Rg4 {[%emt 0:00:38]} 53. Kd3 {[%emt 0:00:40]} Kd8 {[%emt 0:00:42]} 54. Kc2 {[%emt 0:00:29]} Rxg7 {[%emt 0:00:09]} 55. Bxg7 {[%emt 0:00:21]} Kxc7 {[%emt 0:00:01]} 56. Kd3 {[%emt 0:00:07]} Kd6 {[%emt 0:00:10]} 57. Kd4 {[%emt 0:00:01]} Be8 {[%emt 0:00:04]} 58. Bf8+ {[%emt 0:00:10]} Kd7 {[%emt 0:00:08]} 59. Ke5 {[%emt 0:00:17]} Bg6 {[%emt 0:00:05]} 60. Bb4 {[%emt 0:00:17]} Bf5 {[%emt 0:00:05]} 61. Kf6 {[%emt 0:00:04]} 1/2-1/2

[Event "1st SOA-GM Festival 2024"]
[Site "Bhubaneswar"]
[Date "2024.02.02"]
[Round "8.5"]
[White "Savchenko, Boris"]
[Black "Goutham Krishna H"]
[Result "1-0"]
[ECO "B81"]
[WhiteElo "2489"]
[BlackElo "2288"]
[Annotator "RC"]
[PlyCount "111"]
[EventDate "2024.02.01"]
[EventType "swiss"]
[EventCountry "IND"]
[SourceTitle "playchess.com"]
[Source "ChessBase"]
[SourceQuality "1"]
[TimeControl "5400+30"]

1. e4 {[%emt 0:00:03]} c5 {[%emt 0:00:06]} 2. Nf3 {[%emt 0:00:10]} d6 {[%emt 0:00:04]} 3. d4 {[%emt 0:00:32]} cxd4 {[%emt 0:00:02]} 4. Nxd4 {[%emt 0:00:49]} Nf6 {[%emt 0:00:07]} 5. Nc3 {[%emt 0:00:48]} a6 {[%emt 0:00:06]} 6. h3 {[%emt 0:00:21]} e6 {[%emt 0:00:14]} 7. g4 {[%emt 0:00:48]} d5 {[%emt 0:00:01]} 8. exd5 {[%emt 0:00:16]} Nxd5 {[%emt 0:00:03]} 9. Nde2 {[%emt 0:00:14]} h5 {[%emt 0:02:02]} 10. g5 {[%emt 0:00:27]} Nc6 {[%emt 0:00:23]} 11. Bg2 {[%emt 0:19:38]} Nxc3 {[%emt 0:00:08]} 12. Qxd8+ {[%emt 0:02:41]} Nxd8 {[%emt 0:00:03]} 13. Nxc3 {[%emt 0:01:23]} Bd7 {[%emt 0:00:02]} 14. Be3 {[%emt 0:03:17]} Bc6 {[%emt 0:01:03]} 15. Ne4 {[%emt 0:07:52]} Rc8 {[%emt 0:06:42]} 16. O-O {[%emt 0:12:46]} Bd5 {[%emt 0:06:51]} 17. c3 {[%emt 0:08:05]} Be7 {[%emt 0:02:27]} 18. f4 {[%emt 0:03:31]} Bxe4 {[%emt 0:18:33]} 19. Bxe4 {[%emt 0:00:32]} Bc5 {[%emt 0:00:09]} 20. Kf2 {[%emt 0:00:31]} g6 {[%emt 0:01:03]} 21. Rad1 {[%emt 0:10:13]} Bxe3+ {[%emt 0:04:26]} 22. Kxe3 {[%emt 0:00:08]} Ke7 {[%emt 0:00:54]} 23. Rd2 {[%emt 0:13:20]} Nc6 {[%emt 0:00:40]} 24. Rfd1 {[%emt 0:00:20]} Rhd8 {[%emt 0:04:04]} 25. Rxd8 {[%emt 0:00:13]} Nxd8 {[%emt 0:00:10]} 26. a4 {[%emt 0:00:57]} Nc6 {[%emt 0:02:06]} 27. b4 {[%emt 0:00:23]} Nb8 {[%emt 0:02:46]} 28. Kd3 {[%emt 0:02:44]} b6 {[%emt 0:23:00]} 29. Kc2 {[%emt 0:03:51]} Rc7 {[%emt 0:01:36]} 30. Kb3 {[%emt 0:00:43]} Rd7 {[%emt 0:04:49]} 31. Rxd7+ {[%emt 0:02:52]} Kxd7 {[%emt 0:00:10]} 32. h4 {[%emt 0:04:31]} Kc7 {[%emt 0:02:13]} 33. Bd3 {[%emt 0:00:19]} Kd6 {[%emt 0:02:19]} 34. Bc4 {[%emt 0:00:14]} Kd7 {[%emt 0:01:28]} 35. Kc2 {[%emt 0:00:49]} Kd6 {[%emt 0:00:01]} 36. Kd3 {[%emt 0:00:29]} Kd7 {[%emt 0:00:49]} 37. Ke3 {[%emt 0:01:22]} Ke7 {[%emt 0:00:39]} 38. Be2 {[%emt 0:00:15]} Kd7 {[%emt 0:02:37]} 39. Bf1 {[%emt 0:00:15]} Kc7 {[%emt 0:00:43]} 40. f5 {[%emt 0:01:10]} exf5 {[%emt 0:02:05]} 41. Bc4 {[%emt 0:00:04]} Nc6 {[%emt 0:00:27]} 42. Bxa6 {[%emt 0:00:15]} Ne5 {[%emt 0:00:52]} 43. Bb5 {[%emt 0:00:53]} Kd6 {[%emt 0:00:55]} 44. Kf4 {[%emt 0:00:29]} Ng4 {[%emt 0:01:54]} 45. Bc4 {[%emt 0:00:23]} Ne5 {[%emt 0:01:24]} 46. Bb5 {[%emt 0:00:07]} Ng4 {[%emt 0:00:15]} 47. a5 {[%emt 0:00:13]} bxa5 {[%emt 0:00:04]} 48. bxa5 {[%emt 0:00:05]} f6 {[%emt 0:00:22]} 49. Be8 {[%emt 0:01:47]} fxg5+ {[%emt 0:00:16]} 50. hxg5 {[%emt 0:00:22]} h4 {[%emt 0:00:06]} 51. a6 {[%emt 0:00:46]} Kc7 {[%emt 0:00:12]} 52. Bxg6 {[%emt 0:00:13]} h3 {[%emt 0:00:17]} 53. Bxf5 {[%emt 0:00:06]} h2 {[%emt 0:00:10]} 54. Be4 {[%emt 0:00:05]} Nf2 {[%emt 0:00:03]} 55. Bg2 {[%emt 0:00:35]} Nh3+ {[%emt 0:00:22]} 56. Kg3 {[%emt 0:00:19]} 1-0